{"text_format":"2","workbook":"xlsx","n_sheets":1,"sheets":["Sorumlu-İşbirliği Matrisi"],"not_rendered":{"charts":0,"images":0,"macros":0,"external_links":0,"defined_names":1,"comments":1,"pivot_tables":0},"unopened":[],"bounds":{"document_bytes":16777216,"sheet_cells":100000,"run_cost":"one","rows_first":2000,"rows_last":500,"rows_between":2000,"halvings":0,"cell_chars":16384,"cell_head_chars":4096},"cells_cut":0,"cells_raw":0,"read":"whole","date_system":"1900"}

{"sheet":"Sorumlu-İşbirliği Matrisi","index":0,"n_rows":84,"n_cols":79,"rows_kept":84,"cut":false,"hidden":false,"merged":[[2,43,3,43],[1,1,1,4],[2,1,3,1],[2,2,3,2],[2,3,3,3],[2,4,3,4],[2,5,2,20],[2,37,2,41],[2,21,2,35],[2,36,3,36],[2,42,3,42],[2,55,3,55],[2,44,3,44],[2,45,3,45],[2,46,3,46],[2,47,3,47],[2,48,3,48],[2,49,3,49],[2,50,3,50],[2,51,3,51],[2,52,3,52],[2,53,3,53],[2,54,3,54],[2,67,3,67],[2,56,3,56],[2,57,3,57],[2,58,3,58],[2,59,3,59],[2,60,3,60],[2,61,3,61],[2,62,3,62],[2,63,3,63],[2,64,3,64],[2,65,3,65],[2,66,3,66],[2,75,3,75],[2,68,3,68],[2,69,3,69],[2,70,3,70],[2,72,3,72],[2,73,3,73],[2,74,3,74]]}
[]
[null,"S: Faaliyeti Gerçekleştirme Sorumlusu   İ: Faaliyetin Gerçekleşmesinde İş Birliği Yapılacak Birimler"]
[null,"PG Kod","APG Kod","2023-2027 Stratejik Plan Amaç ve Hedeflerine ilşikin Göstergeler","Açıklama\n(Gösterge Tanımı)\nMevcut Durum","Fakülteler",{"$nulls":15},"Enstitüler",{"$nulls":14},"Konservatuvar","Meslek Yüksekokulları",{"$nulls":4},"Yabancı Diller Yüksekokulu","Bilimsel Araştırma Projeleri Koordinasyon Birimi","Hacettepe Teknokent","Hacettepe Teknokent-Teknoloji Transfer Merkezi (HT_TTM)","Dış İlişkiler Koordinatörlüğü","AB Koordinatörlüğü","Seçmeli Dersler Koordinatörlüğü","Uzaktan Eğitim Uygulama ve Araştırma Merkezi\n(HUZEM)","Kariyer Gelişimi Uygulama ve Araştırma Merkezi\n(KARMER)","Yaşam Boyu Öğrenme Merkezi"," Sürdürülebilir Öğretme ve Öğrenme Merkezi\n(STL)","Bilgi İşlem Daire Başkanlığı","Hukuk Müşavirliği","İdari ve Mali İşler Daire Başkanlığı","Kütüphane ve Dokümantasyon Daire Başkanlığı","Öğrenci İşleri Daire Başkanlığı","Personel Daire Başkanlığı","Sağlık Kültür ve Spor Daire Başkanlığı","Strateji Geliştirme Daire Başkanlığı","Yapı İşleri ve Teknik Daire Başkanlığı","Döner Sermaye İşletme Müdürlüğü","HÜKAK\n(KAYO)","Kurumsal Veri Yönetimi Koordinatörlüğü","Sürdürülebilir Yerleşkeler Koordinatörlüğü","Engelli Öğrenci Birimi","İş sağlığı ve güvenliği Koordinatörlüğü","Sağlık Hizmetleri Birimi Yönetim Kurulu Başkanlığı","Toplumsal Cinsiyet Eşitliği Komisyonu","Rektörlük","Genel Sekreterlik","Genel Sekreterlik","Eğitim öğretim koordinatörlüğü Kurulu","Toplumsal Katkı Koor.","Araştırma koordinatörlüğü"]
[{"$nulls":5},"Diş Hekimliği Fakültesi","Eczacılık Fakültesi","Edebiyat Fakültesi","Eğitim Fakültesi","Fen Fakültesi","Fizik Tedavi ve Rehabilitasyon Fakültesi","Güzel Sanatlar Fakültesi","Hemşirelik Fakültesi","Hukuk Fakültesi","İktisadi ve İdari Bilimler Fakültesi","İletişim Fakültesi","Mimarlık Fakültesi","Mühendislik Fakültesi","Sağlık Bilimleri Fakültesi","Spor Bilimleri Fakültesi","Tıp Fakültesi","Aşı Enstitüsü","Atatürk İlkeleri ve İnkılap Tarihi Enstitüsü","Bilişim Enstitüsü","Çocuk Sağlığı Enstitüsü","Eğitim Bilimleri Enstitüsü","Fen Bilimleri Enstitüsü","Güzel Sanatlar Enstitüsü","Halk Sağlığı Enstitüsü","Kanser Enstitüsü","Nörolojik Bilimler ve Psikiyatri Enstitüsü","Nüfus Etütleri Enstitüsü","Nükleer Bilimler Enstitüsü","Sağlık Bilimleri Enstitüsü","Sosyal Bilimler Enstitüsü","\nTürkiyat Araştırmaları Enstitüsü",null,"Hacettepe Ankara Sanayi Odası 1. OSB Meslek Yüksekokulu","Başkent OSB Teknik Bilimler Meslek Yüksekokulu","Sağlık Hizmetleri Meslek Yüksekokulu","Sosyal Bilimler Meslek Yüksekokulu","Mesleki Teknoloji Yüksekokulu",{"$nulls":29},"(Basın ve Halkla İlişkiler Müdürlüğü)",{"$nulls":5},"S","İ"]
[null,"PG1.1.1.",null,"Teknoloji tabanlı sistemle desteklenen derslik sayısı","İnteraktif Panel TV (Sayısı ve Boyutu Dersliğie uygun), Bilgisayar,Video Konferans Kamerası,Ses Sistemi (Dahili veya harici), Derslik ve Dersin özelliğine göre akıllı kürsü,doküman kamerası,kayıt sistemi vb. ekipmanların yer aldığı derslikler ",{"$nulls":48},"S",null,"İ",{"$nulls":4},"İ","İ",{"$nulls":15},{"$f":"COUNTIF(F5:BX5,$BZ$4)","v":1},{"$f":"COUNTIF(F5:BX5,$CA$4)","v":3}]
[null,"PG1.1.2.",null,"Açık ve uzaktan eğitim yöntemleriyle deSteklenen örgün eğitim programı SayıSı","Açık ve/veya uzaktan eğitim yöntemleriyle desteklenen örgün eğitim program sayısını ifade etmektedir. (Açık ders malzemeleri kapsamında verisi olan ders Sayısını ifade etmektedir.)","S","S","S","S","S","S","S","S","S","S","S","S","S","S","S","S","S","S","S","S","S","S","S","S","S","S","S","S","S","S","S","S","S","S","S","S","S","S",{"$nulls":6},"İ",{"$nulls":23},"İ",null,null,null,38,2]
[null,"PG1.1.3.","APG1.1.3.","Öğrencilerin ders memnuniyet oranı (% olarak)","İlgili yılın 01 Ocak - 31 Aralık tarihlerini kapsayacak şekilde yapılan, göstergede belirtilen Memnuniyet Anketine ilişkin bilgi ifade edilmektedir. ","S","S","S","S","S","S","S","S","S","S","S","S","S","S","S","S",null,"S","S",null,"S","S","S",null,null,null,"S",null,"S","S","S","S","S","S","S","S","S","S",{"$nulls":14},"İ",{"$nulls":15},"İ",null,null,null,32,2]
[null,"PG1.1.4.",null,"Kütüphaneden yararlanan kişi sayısı","İlgili yılda, Kütüphane kaynaklarından yararlanan kişi sayısı ifade edilmektedir. (Basılı ve elektronik kaynaklara erişim sağlayan kişi, tesis ve altyapı hizmetlerini kullananlar, verilen eğitim programlarına katılanlar)  ",{"$nulls":51},"S",{"$nulls":20},1,0]
[null,"PG1.2.1.",null,"Sosyal, kültürel ve sportif faaliyet sayısı","01 Ocak - 31 Aralık tarihleri arasında öğrencilere yönelik düzenlenen faaliyet sayılarını ifade etmektedir. ",{"$nulls":31},"İ",{"$nulls":18},"İ",null,null,null,"S","İ",{"$nulls":16},1,3]
[null,"PG1.2.2.","APG1.2.2.","Yükseköğretimde öğrenci yaşamından memnuniyet oranı","01 Ocak - 31 Aralık tarihleri arasında  öğrencilere yönelik yapılan anketlerdeki (barınma, beslenme, kültür faaliyetleri hk.) memnuniyet oranını ifade etmektedir. ","İ","İ","İ","İ","İ","İ","İ","İ","İ","İ","İ","İ","İ","İ","İ","İ","İ","İ","İ","İ","İ","İ","İ","İ","İ","İ","İ","İ","İ","İ","İ","İ","İ","İ","İ","İ","İ","İ",null,null,null,"İ",null,"İ",null,"İ",null,"İ","İ",null,"İ","İ","İ",null,"S",null,"İ",{"$nulls":10},"İ",{"$nulls":4},1,48]
[null,"PG1.2.3.",null,"Müfredat dışı öğrenme faaliyetlerinin katılımcı sayısı","Diploma harici verilen faaliyeetlere (mikroyeterlilikler, sertifika/kurs programları, vb) katılan kişi sayısını  ifade etmektedir. ",{"$nulls":46},1858,"S",{"$nulls":24},1,0]
[null,"PG1.2.4.",null,"Öncelikli sektörlere yönelik (önlisans, lisans ve lisansüstü) diploma programlarının sayısı ","Strateji ve Bütçe Başkanlığı taraından yayınlanan Orta Vadeli Program'da belirlenen Önlisans, lisans ve lisansüstü programlarda yer alan öncelikli alanlara yönelik program sayısını ifade etmektedir. ","S","S","S","S","S","S","S","S","S","S","S","S","S","S","S","S",null,"S","S",null,"S","S","S",null,null,null,"S",null,"S","S","S","S","S","S","S","S","S",{"$nulls":31},"İ","İ","İ",null,31,3]
[null,"PG1.2.5.","APG1.2.5","Mezunların niteliklerine uygun işlerde çalışma oranı ","İlgili yılda, ÜNİVERİ den alınan Mezun İzleme Anketinden alınan gösterge değerini ifade etmektedir.","İ","İ","İ","İ","İ","İ","İ","İ","İ","İ","İ","İ","İ","İ","İ","İ","İ","İ","İ","İ","İ","İ","İ",null,"İ","İ","İ","İ","İ","İ","İ","İ","İ","İ","İ","İ","İ","İ",{"$nulls":7},"S",{"$nulls":26},1,37]
[null,"PG1.3.1.",null,"Yan dal ve çift ana dal programından mezun olanların toplam mezun sayısına oranı","Yan dal ve çift anadal mezun sayısının toplam mezun sayısına oranını ifade etmektedir.","S","S","S","S","S","S","S","S","S","S","S","S","S","S","S","S",{"$nulls":56},16,0]
[null,"PG1.3.2.","APG1.3.2.","Doktora mezunu sayısı","01 Ocak - 31 Aralık tarihleri arasında Doktora Programlarından mezun olan öğrenci sayısını ifade etmektedir.","S",{"$nulls":14},"S",null,"S","S",null,"S","S","S",null,null,null,"S",null,"S","S","S",{"$nulls":17},"İ",{"$nulls":21},"İ",null,11,2]
[null,"PG1.3.3.",null,"Disiplinlerarası lisansüstü program sayısı","31 Aralık itibari ile Aktif Disiplinlerarası Lisansüstü Program Sayısını ifade etmektedir.",{"$nulls":16},"S","S","S","S","S","S","S",null,"S","S","S","S","S","S","S",{"$nulls":37},"İ",null,null,null,14,1]
[null,"PG1.3.4.","APG1.3.4.","Akredite olan lisans programı oranı","Akredite lisans program sayısının toplam lisans program sayısına oranını ifade etmektedir.","S","S","S","S","S","S","S","S","S","S","S","S","S","S","S","S",{"$nulls":39},"İ",null,null,"İ",{"$nulls":13},16,2]
[null,"PG1.3.5.","APG1.3.5","Öz değerlendirme ve/veya akran değerlendirme sürecine dahil olan program oranı","Öz Değerlendirme/ Akran Değerlendirmesi yapılan\nProgram Sayısınının toplam program sayısına oranını ifade etmektedir. ","S","S","S","S","S","S","S","S","S","S","S","S","S","S","S","S","S","S","S","S","S","S","S",null,"S","S","S","S","S","S","S","S","S","S","S","S","S","S",{"$nulls":20},"İ",{"$nulls":13},37,1]
[null,"PG1.3.6.",null,"Araştırma projelerinde görev alan (önlisans, lisans ve lisansüstü) öğrenci sayısı ","1 Ocak-31 Aralık tarihleri arasında araştırma projelerinde görev alan (önlisans, lisans ve lisansüstü) öğrenci sayısını ifade etmektedir.","S","S","S","S","S","S","S","S","S","S","S","S","S","S","S","S","S","S","S","S","S","S","S","S","S","S","S","S","S","S","S",null,"İ","İ","İ","İ","İ",null,"İ",{"$nulls":31},"İ",null,31,7]
[null,"PG1.4.1.",null,"Eğitim programlarına başvuran kişi sayısı","Ön Lisans,Lisans,Lisansüstü programlara başvuran kişi sayısını ifade etmektedir.","S","S","S","S","S","S","S","S","S","S","S","S","S","S","S","S","S","S","S","S","S","S","S",null,"S","S","S","S","S","S","S","S","S","S","S","S","S","S",{"$nulls":14},"İ",{"$nulls":19},37,1]
[null,"PG1.4.2.","APG1.4.2","Üniversite giriş sınavlarında ilk on bine girip üniversiteyi tercih eden öğrenci sayısı","İlk onbinde üniversitemizi tercih eden öğrenci sayısını (kazanıp kayıt yaptıran ve yaptırmayan toplam sayı) ifade etmektedir.","S","S","S","S","S","S","S","S","S","S","S","S","S","S","S","S",{"$nulls":16},"S","S","S","S",{"$nulls":16},"İ",{"$nulls":19},20,1]
[null,"PG1.4.3.",null,"Tanıtım faaliyetleri nedeni ile başvuran/ulaşan öğrenci sayısı","Tanıtım faaliyetleri kapsamında, rezervasyon yaptıran, lise ve dengi okullardan Üniversite programlarını tanımak amacıyla gelen, tanıtım günlerine katılan  kişi sayısını ifade etmektedir. ",{"$nulls":66},"S","S",{"$nulls":4},2,0]
[null,"PG1.5.1.","APG1.5.1.","Uluslararası değişim programlarından yararlanan öğrenci oranı","Değişim Programlarında katılan öğrenci sayısının toplam öğrenci sayısına oranını ifade etmektedir.",{"$nulls":16},"İ","İ","İ","İ","İ","İ","İ","İ","İ","İ","İ","İ","İ","İ","İ","İ",{"$nulls":10},"S",{"$nulls":29},1,16]
[null,"PG1.5.2.",null,"Yabancı dilde eğitim veren program sayısı","%100 yabancı dilde eğitim veren (%30 hariç) programları ifade etmektedir.","S","S","S","S","S","S","S","S","S","S","S","S","S","S","S","S","S","S","S","S","S","S","S",null,"S","S","S","S","S","S","S",{"$nulls":21},"İ",{"$nulls":19},30,1]
[null,"PG1.5.3.","APG1.5.3.","Yabancı uyruklu araştırmacı/öğretim elemanı sayısı","Eğitim ve öğretim yılında üniversitede istihdam edilen doktoralı yabancı uyruklu toplam öğretim elemanı sayısını ifade etmektedir.  • Araştırma projesi yürüten araştırmacı sayısı değerlendirmeye dâhil edilmiştir.• Üniversite bünyesinde istihdam edilmeyen araştırmacılar değerlendirmeye dâhil edilmemiştir. • Erasmus+, Mevlana vb. değişim programları veya üniversiteler arasındaki iş birliği protokolleri kapsamında hareketliliğe katılan araştırmacılar değerlendirmeye dâhil edilmemiştir.","S","S","S","S","S","S","S","S","S","S","S","S","S","S","S","S","S","S","S","S","S","S","S","S","S","S","S","S","S","S","S","S",{"$nulls":5},"S",{"$nulls":15},"İ",{"$nulls":18},33,1]
[null,"PG1.5.4.","APG1.5.4.","Uluslararası Öğrenci Oranı","31 Aralık itibari ile uluslararası öğrenci sayısının toplam öğrenci sayısına oranını ifade etmektedir. ","S","S","S","S","S","S","S","S","S","S","S","S","S","S","S","S","S","S","S","S","S","S","S",null,"S","S","S","S","S","S","S","S","S","S","S","S","S","S",null,null,null,"S",{"$nulls":10},"İ",{"$nulls":19},38,1]
[null,"PG2.1.1. ",null,"WOS Core Collection kapsamında taranan dergilerdeki yayın sayısı ","01 Ocak - 31 Aralık tarihleri arasında ilgili endeksli dergilerdeki yayın sayısını ifade etmektedir.( WOS - InCites'den alınmıştır. Verilerin alınması sırasında “Article” ve “Review” filtrelemeleri uygulanmıştır.)","S","S","S","S","S","S","S","S","S","S","S","S","S","S","S","S","S","S","S","S","S","S",null,"S","S","S","S","S","S","S","S","S","S","S","S","S","S","S",{"$nulls":34},37,0]
[null,"PG2.1.2.","APG2.1.2.","Q1 kategorisindeki dergilerde yayınlanan yayın sayısı","01 Ocak - 31 Aralık tarihleri arasında ilgili endeksli dergilerdeki Q1 yayın sayısını ifade etmektedir.","S","S","S","S","S","S","S","S","S","S","S","S","S","S","S","S","S","S","S","S","S","S",null,"S","S","S","S","S","S","S","S","S","S","S","S","S","S","S",{"$nulls":34},37,0]
[null,"PG2.1.3.","APG2.1.3.","İlk %10 luk Dilimde Atıf Alan Yayın Sayısı ","01 Ocak - 31 Aralık tarihleri arasında (uluslararası indekslerde geçen) ilk % 10’luk dilimde atıf alan yayın sayısını ifade etmektedir ","S","S","S","S","S","S","S","S","S","S","S","S","S","S","S","S","S","S","S","S","S","S",null,"S","S","S","S","S","S","S","S","S","S","S","S","S","S","S",{"$nulls":34},37,0]
[null,"PG2.2.1.",null,"BAP Koordinasyon Birimi tarafından desteklenen araştırma projelerinin sayısı","BAP Koordinasyon Birimi tarafından desteklenen toplan proje sayısını (devam edenler ve yeni eklenenler dahil) ifade etmektedir.",{"$nulls":38},"S",{"$nulls":31},"İ",null,1,1]
[null,"PG2.2.2.","APG2.2.2."," Devam eden dış kaynaklı (TÜBİTAK, Avrupa Birliği, TÜSEB vb.)  araştırma projelerinin toplam bütçesi ","Takvim yılında devam eden dış kaynaklı (TÜBİTAK, Avrupa Birliği, TÜSEB vb.)proje bütçe toplamını (yıl içinde eklenen ve devam eden toplam) ifade etmektedir.",{"$nulls":38},"S",{"$nulls":31},"İ",null,1,1]
[null,"PG2.2.3.","APG2.2.3","HT-TTM ve Döner Sermaye İşletmesi bünyesinde yürütülen özel sektör destekli araştırma-geliştirme projelerinin bütçesi","HT-TTM ve DSİ bünyesinde yürütülen özel sektör destekli araştırma-geliştirme projelerinin toplam bütçesini ifade etmektedir.","S","S","S","S","S","S","S","S","S","S","S","S","S","S","S","S","S","S","S","S","S","S","S","S","S","S","S","S","S","S","S","S","S","S","S","S","S","S",null,null,"İ",{"$nulls":16},"İ",{"$nulls":12},"İ",null,38,3]
[null,"PG2.2.4.",null,"Araştırma projelerinin toplam (BAP, dış destekli, sektör projeleri dahil) bütçesinin büyüklüğü","Araştırma projelerinin toplam (BAP, DÖNER SERMAYE, TTO, dış destekli, sektör projeleri dahil) bütçesinin büyüklüğünü ifade etmektedir. ","S","S","S","S","S","S","S","S","S","S","S","S","S","S","S","S","S","S","S","S","S","S","S","S","S","S","S","S","S","S","S","S","S","S","S","S","S","S","İ",{"$nulls":18},"İ",{"$nulls":5},"S",{"$nulls":6},"İ",null,39,3]
[null,"PG2.3.1.",null,"BAP Koordinasyon Birimi tarafından desteklenen araştırma altyapısı projelerinin sayısı","BAP Koordinasyon Birimi tarafından desteklenen araştırma altyapısı projelerinin sayısını ifade etmektedir. ","S","S","S","S","S","S","S","S","S","S","S","S","S","S","S","S","S","S","S","S","S","S","S","S","S","S","S","S","S","S","S","S","S","S","S","S","S","S","İ",{"$nulls":31},"İ",null,38,2]
[null,"PG2.3.2.",null,"Cumhurbaşkanlığı Strateji ve Bütçe Başkanlığı tarafından sağlanan araştırma altyapısına yönelik bütçenin büyüklüğü","Cumhurbaşkanlığı Strateji ve Bütçe Başkanlığı tarafından sağlanan araştırma altyapısına yönelik bütçenin büyüklüğünü ifade etmektedir. ",{"$nulls":38},"S",{"$nulls":16},"İ",{"$nulls":16},1,1]
[null,"PG2.4.1.","APG2.4.1","Ulusal ve uluslararası katılımlı araştırma işbirliği projelerinin sayısı","Takvim yılında ulusal ve uluslararası özel veya resmi kurum ve kuruluşlar tarafından desteklenmiş ve destek süresi dokuz aydan az olmayan Ar-Ge niteliği taşıyan proje sayısını ifade etmektedir. • Önceki yıllarda başlayan ve devam eden projeler değerlendirmeye dâhil edilmiştir. • Yükseköğretim kurumunun bütçesinden desteklenen Bilimsel Araştırma Projeleri değerlendirmeye dâhil edilmemiştir.","s","s","s","s","s","s","s","s","s","s","s","s","S","S","S","S","S","s","s","S","s","s","s","s","s","s","s","s","s","s","s","s",{"$nulls":6},"İ",{"$nulls":31},"İ",null,32,2]
[null,"PG2.4.2.",null,"Uluslararası kurumlar ile eğitim ve araştırma amaçlı işbirliği yapan araştırmacı sayısı","Uluslararası kurumlar ile eğitim ve araştırma amaçlı işbirliği yapan araştırmacı sayısını ifade etmektedir. (Bütün akademik, idari personel ile lisans ve lisansüstü öğrenciler. Erasmus ve Mevlana programları dahil)","S","S","S","S","S","S","S","S","S","S","S","S","S","S","S","S","S","S","S","S","S","S","S","S","S","S","S","S","S","S","S","S","S","S","S","S","S",{"$nulls":4},"İ",{"$nulls":26},"İ",null,"İ",null,37,3]
[null,"PG2.4.3.",null,"Uluslararası bilimsel etkinliklere katılan araştırmacı sayısı","Çalıştay, sempozyum/kongre,sergi, ziyaret/teknik gezilere katılan araştırmacı sayısını ifade etmektedir.","S","S","S","S","S","S","S","S","S","S","S","S","S","S","S","S","S","S","S","S","S","S",null,"S","S","S","S","S","S","S","S","S","S","S","S","S","S","S",{"$nulls":32},"İ",null,37,1]
[null,"PG2.4.4.","APG2.4.4","Uluslararası işbirliği ile yapılmış yayın sayısı","01 Ocak - 31 Aralık tarihleri arasında (uluslararası indekslerde geçen) uluslararası işbirliği ile yapılmış yayın sayısını ifade etmektedir. (Scopus veri kaynağından alınmıştır.?)","S","S","S","S","S","S","S","S","S","S","S","S","S","S","S","S","S","S","S","S","S","S",null,"S","S","S","S","S","S","S","S","S","S","S","S","S","S","S",{"$nulls":32},"İ",null,37,1]
[null,"PG3.1.1.","APG3.1.1","Teknoloji geliştirme bölgelerinde faaliyet gösteren öğrenci ve/veya akademisyen firma sayısı ","01 Ocak - 31 Aralık tarihleri arasında Teknoloji geliştirme bölgelerinde faaliyet gösteren öğrenci ve/veya akademisyen firma sayısı ",{"$nulls":39},"İ","S",{"$nulls":29},"İ",null,1,2]
[null,"PG3.1.2.",null,"Teknokent bünyesinde ilgili yılda eğitim/mentorluk/danışmanlık hizmeti alan kişi sayısı","01 Ocak - 31 Aralık tarihleri arasında Teknokent bünyesinde ilgili yılda eğitim/mentorluk/danışmanlık hizmeti alan kişi sayısı",{"$nulls":39},"İ","S",{"$nulls":29},"İ",null,1,2]
[null,"PG3.1.3.",null,"Teknoloji Geliştirme Bölgelerinde şirket kuran (önlisans, lisans ve lisansüstü) öğrenci sayısı ","01 Ocak - 31 Aralık tarihleri arasında Teknokent Geliştirme Bölgelerinde şirket kuran (önlisan, lisans ve lisansüstü) öğrenci sayısı girilecektir. ",{"$nulls":39},"İ","S",{"$nulls":29},"İ",null,1,2]
[null,"PG3.2.1.","APG3.2.1","Tescillenen yıllık patent, faydalı model ve endüstriyel tasarım sayısı","01 Ocak - 31 Aralık tarihleri arasında Türk Patent ve Marka Kurumu tarafından tescillenmiş, üniversite ya da öğretim elemanlarının (Öğretim Üyesi, Araştırma Görevlisi, vb) başvuru veya buluş sahibi olduğu faydalı model ve endüstriyel tasarım sayısını ifade etmektedir. ","İ","İ","İ","İ","İ","İ","İ","İ","İ","İ","İ","İ","İ","İ","İ","İ","İ","İ","İ","İ","İ","İ","İ","İ","İ","İ","İ","İ","İ","İ","İ","İ","İ","İ","İ","İ","İ","İ",null,null,"İ",{"$nulls":24},"S",{"$nulls":4},"S",null,2,39]
[null,"PG3.2.2.",null,"Ticarileşen patent, faydalı model ve endüstriyel tasarım sayısı","01 Ocak - 31 Aralık tarihleri arasında ticarileşen, patent, faydalı model ve endüstriyel tasarım sayısı girilecektir. ","İ","İ","İ","İ","İ","İ","İ","İ","İ","İ","İ","İ","İ","İ","İ","İ","İ","İ","İ","İ","İ","İ","İ","İ","İ","İ","İ","İ","İ","İ","İ","İ","İ","İ","İ","İ","İ","İ",null,null,"İ",{"$nulls":9},"İ",{"$nulls":14},"S",{"$nulls":4},"S",null,2,40]
[null,"PG4.1.1.",null,"İç değerlendirme kurumsal akreditasyon puanı","İlgili takvim yılındaki İç değerlendirmede kurumsal akreditasyon puanını ifade etmektedir.",{"$nulls":58},"S",{"$nulls":13},1,0]
[null,"PG4.1.2.",null,"İyileşme gerçekleştirilen süreç sayısı (Kapatılan PUKÖ Döngüsü)","01 Ocak-31 Aralık tarihleri arasında göstergeye ilişkin ilgili yıldaki, İyileştirme gerçekleştirilen süreç (Kapatılan PUKÖ Döngüsü) sayısını ifade etmektedir.                                                                        ","İ","İ","İ","İ","İ","İ","İ","İ","İ","İ","İ","İ","İ","İ","İ","İ","İ","İ","İ","İ","İ","İ","İ","İ","İ","İ","İ","İ","İ","İ","İ","İ","İ","İ","İ","İ","İ","İ","İ",null,null,"İ","İ","İ","İ","İ","İ","İ","İ","İ","İ","İ","İ","İ","İ","İ","İ","İ","S","İ","İ",null,null,"İ","İ",null,"İ","İ","İ","İ","İ",null,1,65]
[null,"PG4.1.3.",null,"Sürdürülebilir ve bütünleşik kalite güvence sistemi eylem planı gerçekleşme oranı","01 Ocak-31 Aralık tarihleri arasında göstergeye ilişkin ilgili yıldaki, Sürdürülebilir ve bütünleşik kalite güvence sistemi eylem planı gerçekleşme oranını ifade etmektedir. İlgili gösterge % olarak sorulmaktadır.",{"$nulls":58},"S",{"$nulls":13},1,0]
[null,"PG4.1.4.",null,"İç Kontrol Standartları Uygulamasına alınan birim oranı","İç kontrol standartları şartlarını gerçekleştiren birim sayısınının toplam birim sayısına oranını ifade etmektedir.",{"$nulls":55},"S",{"$nulls":16},1,0]
[null,"PG4.2.1.",null,"BYBS'ye veri sağlayan uygulamalar içinden güncellenen ve yenilenen uygulama sayısı","Bütünleşik Bilgi Yönetim Sistemine veri sağlayan uygulamalardan (İKYS, Öğrenci İşleri(BİLSİS) , Prens, BYS vb) güncellenen ve yenilenen uygulama sayısını ifade etmektedir. ",{"$nulls":48},"S",{"$nulls":10},"İ",{"$nulls":12},1,1]
[null,"PG4.2.2.",null,"Yöneticilerin BYBS'den veriye ulaşma oranı (bölüm/program bşk. ve üstü, ABD bşk. ve üstü (enstitü), daire bşk. ve üstü) ","Sisteme giren yöneticilerin tanımlanan yönetici sayısına oranı ifade edilmektedir.",{"$nulls":48},"S",{"$nulls":10},"İ",{"$nulls":12},1,1]
[null,"PG4.2.3.",null,"BYBS'den üretilen analiz ve değerlendirme raporu sayısı","İlgili yılda, BYBS'den üretilen analiz ve değerlendirme raporlarının sayısını ifade etmektedir.  (SP, FR, PP, KİDR, KMDBR, İl birifing, Valilik sunum) ",{"$nulls":59},"S",{"$nulls":12},1,0]
[null,"PG4.2.4.",null,"BYBS eğitimi alan kullanıcı oranı (%)","Eğitim alan kişi sayısının toplam kullanıcı sayısına oranını ifade etmektedir. ",{"$nulls":48},"S",{"$nulls":6},"İ",null,null,null,"İ",{"$nulls":7},"İ",{"$nulls":4},1,3]
[null,"PG4.3.1. ",null,"Personel yetkinliklerinin artırılmasına yönelik eğitim alan katılımcı oranı (%)","İlgili yılda eğitim alan idari personelin toplam kadrolu idari personele oranını (Sözleşmeli ve kadrolu) ifade etmektedir. ",{"$nulls":46},"2685/7037=0,38",{"$nulls":6},"S",{"$nulls":8},"S","S",null,null,null,"S",{"$nulls":4},4,0]
[null,"PG4.3.2.",null,"Personel yetkinliklerinin artırılmasına yönelik eğitim programı sayısı","İlgili yılın 01 Ocak - 31 Aralık tarihlerini kapsayacak şekilde gerçekleştirilen personel yetkinliklerinin artırılmasına yönelik eğitim program sayısı ifade edilmektedir. (Hizmet içi eğitim, İş sağlığı ve güvenliği eğitimi…)",{"$nulls":46},"Toplam 2= 1 (2024 Yılı İsg Koordinatörlüğü Çalışanlara Yönelik Online (Periyodik) İsg Eğitimleri-Huzem)+1 (2024 İsg Koordinatörlüğü Yüz-Yüze Çalışan İsg Eğitimleri)",{"$nulls":6},"S",{"$nulls":8},"S","S",{"$nulls":8},3,0]
[null,"PG4.3.3.","APG4.3.3. ","Akademik personel memnuniyeti (% olarak)","İlgili yılın 01 Ocak - 31 Aralık tarihlerini kapsayacak şekilde yapılan göstergede belirtilen Memnuniyet Anketlerine ilişkin bilgi girilecektir. İlgili gösterge % olarak sorulmakta olup, Min. 0 max. 100 Değerini giriniz. ","S","S","S","S","S","S","S","S","S","S","S","S","S","S","S","S","S","S","S","S","S","S","S","S","S","S","S","S","S","S","S","S","S","S","S","S","S","S","S","S","S",{"$nulls":7},"S","S","S","S","S","S","S","S","S",{"$nulls":8},"S",null,"S",{"$nulls":4},52,0]
[null,"PG4.3.4.","APG4.3.4. ","İdari personel memnuniyet oranı (% olarak) ","İlgili yılın 01 Ocak - 31 Aralık tarihlerini kapsayacak şekilde yapılan göstergede belirtilen Memnuniyet Anketlerine ilişkin bilgi girilecektir. İlgili gösterge % olarak sorulmakta olup, Min. 0 max. 100 Değerini giriniz. ","S","S","S","S","S","S","S","S","S","S","S","S","S","S","S","S","S","S","S","S","S","S","S","S","S","S","S","S","S","S","S","S","S","S","S","S","S","S","S","S","S",{"$nulls":7},"S","S","S","S","S","S","S","S","S",{"$nulls":8},"S",null,"S",{"$nulls":4},52,0]
[null,"PG4.4.1. ",null,"Her yıl mezun olan öğrencilerden mezun izleme sistemine kayıt oranı","31 Aralık itibariyle toplam mezun sayısının mezun izleme sistemine kayıt olan mezun sayısına oranını ifade etmektedir. ",{"$nulls":52},"S",{"$nulls":19},1,0]
[null,"PG4.4.2.",null,"Mezunlarla gerçekleştirilen iletişim yöntemi sayısı","Mezunlarla gerçekleştirilen iletişim yöntemi sayısını ifade etmektedir. (1-Odak grup toplantıları,2-web sayfası, 3-Danışma Kurulu, 4-Anketler","İ","İ","İ","İ","İ","İ","İ","İ","İ","İ","İ","İ","İ","İ","İ","İ","İ","İ","İ","İ","İ","İ","İ","İ","İ","İ","İ","İ","İ","İ","İ","İ","İ","İ","İ","İ","İ",{"$nulls":15},"İ",{"$nulls":5},"S",{"$nulls":13},1,38]
[null,"PG4.4.3.",null,"Oluşturulan paydaş katılım mekanizması sayısı","Takvim yılı içinde oluşturulan ve önceki yıllardan aktif olarak süregelen paydaş katılım mekanizması sayısını ifade etmektedir. (Anket, temsiliyet, odak grup görüşmeleri, web sayfasında görüş istek şikayet teşekkür mekanizması)",{"$nulls":58},"S",{"$nulls":13},1,0]
[null,"PG4.4.4.",null,"Karar alma süreçlerine katılan paydaş sayısının mevzuata göre oluşturulan kurullardaki toplam üye sayısına oranı","Karar alma süreçlerine katılan paydaş sayısının mevzuata göre oluşturulan kurullardaki toplam üye sayısına oranını ifade etmektedir. (öğrenci sayısı/Senato, Yönetim Kurulu, Koordinasyon Kurulu katılımcı sayıları) ",{"$nulls":58},"S",{"$nulls":13},1,0]
[null,"PG4.5.1.",null,"Performansı izlenen personel oranı","Performans izleme kriterlerine göre performansı izlenen akademik personel sayısının toplam akademik personel sayısına oranını ifade etmektedir. ",{"$nulls":48},"İ",{"$nulls":10},"S",{"$nulls":12},1,1]
[null,"PG4.5.2.",null,"Performansı izlenen birim oranı","İlgili yılda performans izleme kriterlerine göre performansı izlenen birimlerin toplam birimlere oranını ifade etmektedir. ",{"$nulls":48},"İ",{"$nulls":10},"S",{"$nulls":12},1,1]
[null,"PG4.5.3.",null,"Birim ve hizmet performansının izlenmesine yönelik sisteminin tamamlanma yüzdesi","İlgili yıl için öngörülen birim ve hizmet performansı izlenmesine yönelik beklentinin gerçekleştirilen izlenmeye oranını ifade etmektedir. ",{"$nulls":48},"İ",{"$nulls":10},"S",{"$nulls":12},1,1]
[null,"PG4.5.4.",null,"Mali yönetim konusunda verilen danışmanlık ve rehberliğe yönelik yayın sayısı","Mali yönetim konusunda verilen danışmanlık ve rehberliğe yönelik yayın sayısını ifade etmektedir.",{"$nulls":55},"S",{"$nulls":16},1,0]
[null,"PG4.5.5.",null,"Merkezi bütçe dışı (öz gelir, döner sermaye, fon vb.) gelirlerin yıllık bütçeye oran","Mali yıla ait danışmanlık, proje ve araştırmalar dâhil öz gelir, döner sermaye, fon vb. merkezi bütçe dışı toplam gelirin, üniversitenin gerçekleşen yıllık bütçesine oranı\n• Bütçe dışı gelir için Sağlık Uygulama ve Araştırma Merkezi vb. birimlere ait döner sermayelerin sadece kârları hesaplamaya dâhil edilmiştir. Zarar etme durumunda ise\nzarar miktarı hesaplamaya dâhil edilmemiştir.",{"$nulls":38},"S",null,null,"İ",{"$nulls":8},"İ",null,null,null,"İ","İ",null,"S",{"$nulls":5},"S",{"$nulls":4},"S","S","S",null,6,4]
[null,"PG5.1.1.",null,"Dezavantajlı gruplara yönelik sosyal entegrasyon ve kapsayıcılığa ilişkin yapılan faaliyet sayısı","İlgili yılda dezavantajlı gruplara yönelik sosyal entegrasyon ve sosyal kapsayıcılığa ilişkin düzenlenen proje, panel, konferans, kongre, sanatsal faaliyet, ödül töreni vb. faaliyet sayısı",{"$nulls":48},"İ",null,null,"S","İ",null,"S",{"$nulls":5},"İ","S",{"$nulls":7},"İ",null,null,3,4]
[null,"PG5.1.2.",null,"Dezavantajlı bireylerin hizmetlere erişimini kolaylaştırıcı (personel maaşı dahil) harcamaların miktarı ","Dezavantajlı bireylerin hizmetlere erişimini kolaylaştırıcı (personel maaşı dahil) harcamaların miktarını ifade etmektedir. (engelli birey*personel maaşı) + bütçeden engelli için ayrılan miktar toplamı hesaplanacaktır.)",{"$nulls":53},"S",null,null,"İ",{"$nulls":4},"S",{"$nulls":10},2,1]
[null,"PG5.1.3.",null,"Alınan engelsiz üniversite bayrak ve program nişanı sayısı","Takvim yılında Üniversitenin aldığı bayrak ve program nişan sayısı",{"$nulls":61},"S",{"$nulls":10},1,0]
[null,"PG5.1.4.",null,"Toplumsal cinsiyet eşitliği eylem planının tamamlanma oranı","Toplumsal cinsiyet eşitliği eylem planınında yer alan planlardan, tamamlanan eylemlerin söz konusu dönem için gerçekleştirilmesi planlanan toplam eylem sayısına oranını ifade etmektedir",{"$nulls":64},"S",{"$nulls":7},{"$f":"COUNTIF(F69:BX69,$BZ$4)","v":1},{"$f":"COUNTIF(F69:BX69,$CA$4)","v":0}]
[null,"PG5.2.1.",null,"Sağlık personeli eksikliği nedeniyle kullanılamayan yatakların hizmete alınma oranı (%) ","Kulanılamayan yatakların yıl içerisinde kullanıma açılanlarla oranlanması",{"$nulls":63},"S",{"$nulls":8},1,0]
[null,"PG5.2.2.",null,"Uluslararası hasta sayısının hizmet verilen tüm hastalar içindeki oranı (%)","Uluslararası hasta sayısının (TC dışında kimlikli hastalar) toplam hasta sayısına oranını ifade etmektedir. ","S",{"$nulls":4},"S",{"$nulls":51},"İ",{"$nulls":5},"S",{"$nulls":8},3,1]
[null,"PG5.2.3.",null,"SGK dışından elde edilen DSİ gelirinin toplam gelire oranı","SGK dışından elde edilen döner sermaye gelirinin toplam gelire oranını ifade etmektedir. ",{"$nulls":5},"S",{"$nulls":51},"S",{"$nulls":5},"İ",{"$nulls":5},"İ",null,null,2,2]
[null,"PG5.2.4.","APG5.2.4.","Ayaktan ve yatan hasta memnuniyet oranı ","Ayaktan ve yatan hastalara uygulanan anketlerden elde edilen memnuniyet oranını ifade etmektedir. ","S",{"$nulls":4},"S",{"$nulls":57},"S",{"$nulls":8},3,0]
[null,"PG5.3.1.","APG5.3.1","Sürdürülebilir kalkınma hedeflerine katkı oranı ","Üniversitenin, Cumhurbaşkanlığı Strateji ve Bütçe Başkanlığı Sürdürülebilir Kalkınma Amaçlarına katkı oranını ifade etmektedir. ","S","S","S","S","S","S","S","S","S","S","S","S","S","S","S","S","S","S","S","S","S","S","S","S","S","S","S","S","S","S","S","S","S","S","S","S","S","S",{"$nulls":12},"S",{"$nulls":5},"S",null,null,null,"S",{"$nulls":8},"S",null,null,42,0]
[null,"PG5.3.2.",null,"Topluma hizmet faaliyetleri kapsamında elde edilen hizmet gelirinin toplam gelire oranı ","01 Ocak– 31 Aralık tarihleri arasındaki ilgili mali yıla ilişkin, Kurumun kendi belirleyeceği Topluma Hizmet Faaliyetlerinden elde ettiği gelirlerin, merkezi bütçe kanunu çerçevesinde kuruma tahsis edilen başlangıç ödeneği tutarına oranını ifade etmektedir. ",{"$nulls":57},"S",{"$nulls":14},1,0]
[null,"PG5.3.3.",null,"Kamu kurum ve kuruluşları ve sivil toplum örgütleri ile ortak yapılan proje sayısı","İlgili yılda kamu kurum ve kuruluşları ve sivil toplum örgütleri ile ortak yapılan proje sayısını ifade etmektedir. • İl, bölge veya ulusal düzeyde olan projelere ait verilerdir. • Projenin başlangıç yılı dikkate alınmamıştır.","S","S","S","S","S","S","S","S","S","S","S","S","S","S","S","S","S","S","S","S","S","S","S","S","S","S","S","S","S","S","S","S","S","S","S","S","S","S",{"$nulls":31},"S",null,null,39,0]
[null,"PG5.3.4.",null,"Yaşam Boyu Öğrenim Merkezi tarafından eğitim verilen kişi sayısı","31 Aralık itibari ile Yaşam Boyu Öğrenme Merkezi vb. yapılarca verilen yıllık eğitim alan kişi sayısı ifade edilmektedir.",{"$nulls":46},1858,{"$nulls":25},0,0]
[null,"PG5.3.5.","APG5.3.5","Kamu kurum ve kuruluşlarında görevlendirilen personel sayısı","İlgili yılda  kamu kurum ve kuruluşlarında yapılan görevlendirilen personel sayısı","S","S","S","S","S","S","S","S","S","S","S","S","S","S","S","S","S","S","S","S","S","S","S","S","S","S","S","S","S","S","S","S","S","S","S","S","S","S",{"$nulls":31},"İ",null,null,38,1]
[null,"PG5.4.1. ",null,"Bir yılda gerçekleştirilen halka açık faaliyet sayısı","İlgili yılda gerçekleştirilen halka açık faaliyet sayılarını ifade etmektedir. ","S","S","S","S","S","S","S","S","S","S","S","S","S","S","S","S","S","S","S","S","S","S","S","S","S","S","S","S","S","S","S","S","S","S","S","S","S","S",{"$nulls":8},"Toplam 58 (9  programı protokollü 22 eğitim birim payı (12 grup EE Sertifika Programı ve 10 grup Uzman Arabuluculuk Eğitim Programı)",{"$nulls":22},"S",null,null,39,0]
[null,"PG5.4.2.",null,"Ulusal veya uluslararası basında yer alan kültür sanat ve spor faaliyetleri ile ilgili haber sayısı","İlgili yılda ulusal ve uluslararası basında yer alan kültür sanat ve spor faaliyetleri ile ilgili haber sayısını ifade etmektedir. ","İ","İ","İ","İ","İ","İ","İ","İ","İ","İ","İ","İ","İ","İ","İ","İ","İ","İ","İ","İ","İ","İ","İ","İ","İ","İ","İ","İ","İ","İ","İ","İ","İ","İ","İ","İ","İ","İ",{"$nulls":28},"S",null,null,"S",null,null,2,38]
[null,"PG5.4.3.","APG5.4.3.","Üniversitenin yeşil, çevreci üniversite endeksindeki sıralaması","İlgili yıldaki UI Greenmetric vb. yeşil, çevreci üniversite endeksindekindeki sıralaması",{"$nulls":60},"S",{"$nulls":8},"İ",null,null,1,1]
[null,"PG5.4.4.","APG5.4.4.","Öğrenciler tarafından gerçekleştirilen sosyal sorumluluk projesi sayısıi ","Takvim yılında öğrenciler tarafından yürütülen sosyal sorumluluk projelerinin sayısını ifade etmektedir.  Projeler il, bölge veya ülke bazındadır\n• Önceki yıllarda başlayan ve ilgili yılda devam eden projeler değerlendirmeye dâhil edilmiştir.","S","S","S","S","S","S","S","S","S","S","S","S","S","S","S","S","S","S","S","S","S","S","S",null,"S","S","S","S","S","S","S","S","S","S","S","S","S","S",{"$nulls":5},"İ",{"$nulls":10},"İ",{"$nulls":14},"İ",null,null,37,3]
[{"$nulls":4},"S",{"$f":"COUNTIF(F$5:F$82,$E$83)","v":32},29,29,29,29,32,29,29,29,29,29,29,29,29,29,30,25,28,28,25,28,28,23,19,25,25,28,25,28,28,28,24,23,23,23,23,22,21,6,2,5,1,1,0,0,1,0,1,6,2,3,4,3,5,5,4,3,3,{"$f":"COUNTIF(BL$5:BL$82,$E$83)","v":6},{"$f":"COUNTIF(BM$5:BM$82,$E$83)","v":4},2,3,2,7,1,4,{"$f":"COUNTIF(BT$5:BT$82,$E$83)","v":2},4,1,5,{"$f":"COUNTIF(BX$5:BX$82,$E$83)","v":3},{"$f":"SUM(F83:BX83)","v":1120},{"$f":"SUM(BZ5:BZ82)","v":1120},{"$f":"SUM(CA5:CA82)","v":401}]
[{"$nulls":4},"İ",{"$f":"COUNTIF(F$5:F$82,$E$84)","v":7},7,7,7,7,7,7,7,7,7,7,7,7,7,7,7,8,8,8,8,8,8,8,7,8,8,8,8,8,8,8,9,8,8,8,8,8,6,5,3,3,4,1,3,2,2,1,2,7,1,6,2,9,2,3,7,4,4,2,4,2,0,0,2,1,0,{"$f":"COUNTIF(BT$5:BT$82,$E$84)","v":1},3,{"$f":"COUNTIF(BV$5:BV$82,$E$84)","v":6},7,{"$f":"COUNTIF(BX$5:BX$82,$E$84)","v":16},{"$f":"SUM(F84:BX84)","v":401}]